fUSD/lending_fUSD_20260622
["ID","MTS","AMOUNT","RATE_DAILY","PERIOD"]
[426088508,1782141044000,-3781.0,0.00025786,2]
[426088460,1782141044000,-3587.04251905,0.00025205,7]
[426088495,1782141044000,-190.61917961,0.00025541,2]
[426088482,1782141044000,-200.0,0.00025514,2]
[426088450,1782141044000,-354.01,0.00025,2]
[426088480,1782141044000,-412.43236871,0.00025514,2]
[426088479,1782141044000,-721.12765534,0.00025512,2]
[426088453,1782141044000,-354.01,0.00025,2]
[426088459,1782141044000,-226.97211214,0.00025205,7]
[426088457,1782141044000,-632.0,0.000252,2]
[426088455,1782141044000,-502.24466829,0.00025029,2]
[426088458,1782141044000,-620.0,0.000252,2]
[426088462,1782141044000,-350.0,0.00025332,6]
[426088461,1782141044000,-785.0,0.00025259,2]
[426088463,1782141044000,-250.0,0.00025332,6]
[426088465,1782141044000,-299.11,0.00025332,6]
[426088466,1782141044000,-356.0,0.00025397,2]
[426088464,1782141044000,-250.0,0.00025332,6]
[426088456,1782141044000,-300.0,0.000251,2]
[426088469,1782141044000,-166.64057669,0.00025463,2]
[426088467,1782141044000,-182.11056311,0.00025463,2]
[426088478,1782141044000,-621.78829552,0.00025512,2]
[426088477,1782141044000,-204.16758155,0.00025495,2]
[426088476,1782141044000,-160.91673313,0.00025495,2]
[426088474,1782141044000,-194.99923137,0.00025463,2]
[426088475,1782141044000,-184.26468098,0.00025495,2]
[426088481,1782141044000,-151.0,0.00025514,2]
[426088472,1782141044000,-164.8907304,0.00025463,2]
[426088471,1782141044000,-158.12530465,0.00025463,2]
[426088470,1782141044000,-692.27287416,0.00025463,2]
[426088468,1782141044000,-160.5356423,0.00025463,2]
[426088473,1782141044000,-152.64564695,0.00025463,2]
[426088547,1782141045000,-256.80618046,0.00026397,2]
[426088550,1782141045000,-452.620133,0.00026443,2]
[426088551,1782141045000,-210.0,0.00026444,5]
[426088545,1782141045000,-150.0,0.00026333,2]
[426088542,1782141045000,-14701.54489088,0.00026222,2]
[426088543,1782141045000,-785.0,0.00026256,2]
[426088546,1782141045000,-198.93413608,0.00026383,2]
[426088541,1782141045000,-501.0,0.00026186,7]
[426088552,1782141045000,-14701.54489088,0.00026444,2]
[426088539,1782141045000,-150.0,0.00026093,2]
[426088544,1782141045000,-714.6,0.00026296,2]
[426088548,1782141045000,-28040.80563702,0.000264,2]
[426088555,1782141045000,-785.0,0.00026589,2]
[426088554,1782141045000,-350.0,0.00026579,8]
[426088556,1782141045000,-412.4323689,0.0002661,2]
[426088553,1782141045000,-1664.17,0.00026464,7]
[426088557,1782141045000,-151.0,0.0002661,2]
[426088559,1782141045000,-270.0455652,0.0002661,2]
[426088558,1782141045000,-200.0,0.0002661,2]
[426088567,1782141045000,-321.0712846,0.00026737,2]
[426088560,1782141045000,-2991.49051684,0.0002661,2]
[426088561,1782141045000,-301.14337869,0.0002661,2]
[426088568,1782141045000,-226.05870673,0.00026737,2]
[426088540,1782141045000,-193.0,0.000261,2]
[426088562,1782141045000,-906.04900206,0.0002661,2]
[426088549,1782141045000,-1013.42404431,0.00026415,2]
[426088538,1782141045000,-356.0,0.00026082,2]
[426088520,1782141045000,-612.79847226,0.0002599,2]
[426088537,1782141045000,-1169.94,0.0002607,2]
[426088563,1782141045000,-151.0,0.0002661,2]
[426088513,1782141045000,-10000.0,0.00025805,2]
[426088509,1782141045000,-934.08,0.00025786,2]
[426088510,1782141045000,-2025.84,0.00025786,2]
[426088514,1782141045000,-785.0,0.00025924,2]
[426088512,1782141045000,-558.41,0.000258,7]
[426088516,1782141045000,-1276.0,0.00025962,2]
[426088525,1782141045000,-220.71389488,0.00026,2]
[426088518,1782141045000,-216.0,0.00025962,2]
[426088517,1782141045000,-934.0,0.00025962,2]
[426088515,1782141045000,-383.0,0.00025962,2]
[426088519,1782141045000,-6566.0,0.00025973,2]
[426088536,1782141045000,-906.04900202,0.00026062,2]
[426088523,1782141045000,-4612.44726536,0.00026,2]
[426088522,1782141045000,-1135.37316374,0.00026,2]
[426088524,1782141045000,-4126.0,0.00026,2]
[426088526,1782141045000,-216.35787048,0.00026,3]
[426088532,1782141045000,-260.4103811,0.00026062,2]
[426088530,1782141045000,-151.0,0.00026062,2]
[426088529,1782141045000,-412.43236871,0.00026062,2]
[426088535,1782141045000,-151.0,0.00026062,2]
[426088528,1782141045000,-14701.54489088,0.00026,2]
[426088534,1782141045000,-290.3986294,0.00026062,2]
[426088533,1782141045000,-2884.75459676,0.00026062,2]
[426088531,1782141045000,-200.0,0.00026062,2]
[426088527,1782141045000,-9102.70088053,0.00026,5]
[426088521,1782141045000,-550.0,0.00026,2]
[426088511,1782141045000,-52139.13,0.00025786,2]
[426088565,1782141045000,-225.64827983,0.00026737,2]
[426088566,1782141045000,-364.22112622,0.00026737,2]
[426088596,1782141045000,-354.63638105,0.00026817,2]
[426088600,1782141045000,-224.71971872,0.00026817,2]
[426088601,1782141045000,-243.27897111,0.00026817,2]
[426088599,1782141045000,-236.23414528,0.00026817,2]
[426088602,1782141045000,-186.10420725,0.00026817,2]
[426088605,1782141045000,-437.10167785,0.00026817,2]
[426088606,1782141045000,-210.32996405,0.00026817,2]
[426088604,1782141045000,-368.63386337,0.00026817,2]
[426088607,1782141045000,-200.18459045,0.00026817,2]
[426088609,1782141045000,-351.11567648,0.00026817,2]
[426088613,1782141045000,-451.72328452,0.00026845,2]
[426088619,1782141045000,-1056.37288543,0.00027,2]
[426088608,1782141045000,-226.67051891,0.00026817,2]
[426088610,1782141045000,-332.40358432,0.00026817,2]
[426088620,1782141045000,-530.0,0.00027,2]
[426088612,1782141045000,-319.09546027,0.00026817,2]
[426088611,1782141045000,-163.4724224,0.00026817,2]
[426088614,1782141045000,-14701.54489088,0.00026889,2]
[426088617,1782141045000,-350945.48479855,0.00027,2]
[426088618,1782141045000,-3258.0,0.00027,2]
[426088616,1782141045000,-250.0,0.00027,2]
[426088615,1782141045000,-785.0,0.00026921,2]
[426088621,1782141045000,-7000.0,0.00027,3]
[426088623,1782141045000,-151.0,0.00027,2]
[426088622,1782141045000,-151.0,0.00027,2]
[426088603,1782141045000,-316.91717302,0.00026817,2]
[426088598,1782141045000,-329.37096191,0.00026817,2]
[426088624,1782141045000,-151.0,0.00027,2]
[426088595,1782141045000,-401.93054236,0.00026817,2]
[426088597,1782141045000,-381.23835922,0.00026817,2]
[426088569,1782141045000,-333.28115338,0.00026737,2]
[426088573,1782141045000,-329.7814608,0.00026737,2]
[426088574,1782141045000,-171.66425818,0.00026737,2]
[426088571,1782141045000,-154.7020948,0.00026737,2]
[426088572,1782141045000,-316.25060929,0.00026737,2]
[426088570,1782141045000,-519.20465562,0.00026737,2]
[426088577,1782141045000,-229.93832611,0.00026737,2]
[426088576,1782141045000,-204.80700667,0.00026737,2]
[426088581,1782141045000,-225.15466045,0.00026737,2]
[426088578,1782141045000,-237.03304275,0.00026737,2]
[426088579,1782141045000,-305.29129391,0.00026737,2]
[426088580,1782141045000,-389.99846273,0.00026737,2]
[426088564,1782141045000,-14701.54489088,0.00026667,2]
[426088593,1782141045000,-379.56585248,0.00026817,2]
[426088575,1782141045000,-195.6836118,0.00026737,2]
[426088590,1782141045000,-317.61128297,0.00026816,2]
[426088592,1782141045000,-341.82811269,0.00026816,2]
[426088586,1782141045000,-223.49105104,0.0002677,2]
[426088587,1782141045000,-152.61646468,0.0002677,2]
[426088591,1782141045000,-340.17953695,0.00026816,2]
[426088584,1782141045000,-321.83346627,0.0002677,2]
[426088583,1782141045000,-368.52936196,0.0002677,2]
[426088588,1782141045000,-709.11,0.00026774,2]
[426088582,1782141045000,-1169.94,0.00026755,2]
[426088589,1782141045000,-501.0,0.00026804,8]
[426088594,1782141045000,-392.0703845,0.00026817,2]
[426088585,1782141045000,-408.3351631,0.0002677,2]
[426088657,1782141046000,-200.0,0.00027047,2]
[426088655,1782141046000,-200.0,0.00027047,2]
[426088653,1782141046000,-200.0,0.00027047,2]
[426088659,1782141046000,-200.0,0.00027047,2]
[426088654,1782141046000,-200.0,0.00027047,2]
[426088656,1782141046000,-200.0,0.00027047,2]
[426088666,1782141046000,-500.0,0.00027047,2]
[426088669,1782141046000,-500.0,0.00027047,2]
[426088667,1782141046000,-500.0,0.00027047,2]
[426088658,1782141046000,-200.0,0.00027047,2]
[426088662,1782141046000,-200.0,0.00027047,2]
[426088670,1782141046000,-500.0,0.00027047,2]
[426088660,1782141046000,-200.0,0.00027047,2]
[426088663,1782141046000,-200.0,0.00027047,2]
[426088661,1782141046000,-200.0,0.00027047,2]
[426088650,1782141046000,-200.0,0.00027047,2]
[426088664,1782141046000,-182.0,0.00027047,2]
[426088665,1782141046000,-500.0,0.00027047,2]
[426088671,1782141046000,-500.0,0.00027047,2]
[426088675,1782141046000,-500.0,0.00027047,2]
[426088673,1782141046000,-500.0,0.00027047,2]
[426088677,1782141046000,-500.0,0.00027047,2]
[426088682,1782141046000,-14701.54489088,0.00027111,2]
[426088668,1782141046000,-500.0,0.00027047,2]
[426088648,1782141046000,-200.0,0.00027047,2]
[426088640,1782141046000,-200.0,0.00027047,2]
[426088651,1782141046000,-200.0,0.00027047,2]
[426088672,1782141046000,-500.0,0.00027047,2]
[426088626,1782141046000,-151.0,0.00027,2]
[426088629,1782141046000,-200.0,0.00027047,2]
[426088627,1782141046000,-200.0,0.00027047,2]
[426088625,1782141046000,-158.29196,0.00027,2]
[426088628,1782141046000,-200.0,0.00027047,2]
[426088631,1782141046000,-200.0,0.00027047,2]
[426088632,1782141046000,-200.0,0.00027047,2]
[426088633,1782141046000,-200.0,0.00027047,2]
[426088630,1782141046000,-200.0,0.00027047,2]
[426088635,1782141046000,-200.0,0.00027047,2]
[426088634,1782141046000,-200.0,0.00027047,2]
[426088637,1782141046000,-200.0,0.00027047,2]
[426088646,1782141046000,-200.0,0.00027047,2]
[426088644,1782141046000,-200.0,0.00027047,2]
[426088645,1782141046000,-200.0,0.00027047,2]
[426088636,1782141046000,-200.0,0.00027047,2]
[426088638,1782141046000,-200.0,0.00027047,2]
[426088639,1782141046000,-200.0,0.00027047,2]
[426088642,1782141046000,-200.0,0.00027047,2]
[426088641,1782141046000,-200.0,0.00027047,2]
[426088647,1782141046000,-200.0,0.00027047,2]
[426088649,1782141046000,-200.0,0.00027047,2]
[426088652,1782141046000,-200.0,0.00027047,2]
[426088643,1782141046000,-200.0,0.00027047,2]
[426088681,1782141046000,-593.0,0.00027047,2]
[426088676,1782141046000,-500.0,0.00027047,2]
[426088705,1782141046000,-453.35036438,0.00027397,2]
[426088707,1782141046000,-2287.73958299,0.00027397,2]
[426088714,1782141046000,-3095.14,0.00027397,2]
[426088711,1782141046000,-442.0,0.00027397,2]
[426088708,1782141046000,-1500.0,0.00027397,2]
[426088710,1782141046000,-456.0,0.00027397,2]
[426088709,1782141046000,-671.51279974,0.00027397,2]
[426088715,1782141046000,-194.200645,0.00027397,2]
[426088713,1782141046000,-154.046654,0.00027397,2]
[426088712,1782141046000,-980.68,0.00027397,2]
[426088719,1782141046000,-194.200645,0.00027397,2]
[426088720,1782141046000,-194.200645,0.00027397,2]
[426088722,1782141046000,-194.200645,0.00027397,2]
[426088721,1782141046000,-194.200645,0.00027397,2]
[426088727,1782141046000,-201.248029,0.00027397,2]
[426088723,1782141046000,-1025.73,0.00027397,2]
[426088724,1782141046000,-151.0,0.00027397,2]
[426088728,1782141046000,-201.248029,0.00027397,2]
[426088725,1782141046000,-250.957169,0.00027397,2]
[426088726,1782141046000,-530.41,0.00027397,2]
[426088730,1782141046000,-201.248029,0.00027397,2]
[426088729,1782141046000,-201.248029,0.00027397,2]
[426088674,1782141046000,-500.0,0.00027047,2]
[426088716,1782141046000,-194.200645,0.00027397,2]
[426088717,1782141046000,-194.200645,0.00027397,2]
[426088718,1782141046000,-194.200645,0.00027397,2]
[426088695,1782141046000,-785.0,0.00027254,2]
[426088678,1782141046000,-500.0,0.00027047,2]
[426088706,1782141046000,-3000.0,0.00027397,2]
[426088679,1782141046000,-500.0,0.00027047,2]
[426088680,1782141046000,-500.0,0.00027047,2]
[426088690,1782141046000,-1113.7792529,0.00027221,5]
[426088693,1782141046000,-1072.12918236,0.00027221,5]
[426088692,1782141046000,-1018.81290275,0.00027221,5]
[426088691,1782141046000,-1027.9640812,0.00027221,5]
[426088687,1782141046000,-1115.31881396,0.00027221,5]
[426088689,1782141046000,-1084.26461218,0.00027221,5]
[426088684,1782141046000,-280.03725111,0.00027158,2]
[426088685,1782141046000,-200.0,0.00027158,2]
[426088683,1782141046000,-709.11,0.00027148,2]
[426088696,1782141046000,-2475.39,0.00027259,7]
[426088686,1782141046000,-50638.63297689,0.000272,2]
[426088694,1782141046000,-1216.36956725,0.00027221,5]
[426088698,1782141046000,-14701.54489088,0.00027333,2]
[426088702,1782141046000,-151.0,0.00027394,7]
[426088701,1782141046000,-151.0,0.00027394,7]
[426088699,1782141046000,-4198.42287072,0.0002739,2]
[426088704,1782141046000,-162.79508498,0.00027397,2]
[426088697,1782141046000,-200.0,0.000273,10]
[426088700,1782141046000,-8294.5745801,0.0002739,2]
[426088688,1782141046000,-1147.67229868,0.00027221,5]
[426088703,1782141046000,-1003.16,0.00027397,2]
[426088819,1782141047000,-815.98,0.00027559,30]
[426088795,1782141047000,-709.11,0.00027521,2]
[426088806,1782141047000,-511.070885,0.0002755,2]
[426088808,1782141047000,-285.682151,0.0002755,2]
[426088804,1782141047000,-1142.433155,0.0002755,2]
[426088789,1782141047000,-1169.94,0.0002744,2]
[426088799,1782141047000,-1094.891311,0.0002755,2]
[426088793,1782141047000,-315.0,0.00027501,5]
[426088797,1782141047000,-1142.27617,0.0002755,2]
[426088821,1782141047000,-783.3,0.0002756,30]
[426088802,1782141047000,-1220.037344,0.0002755,2]
[426088812,1782141047000,-1365.8,0.00027557,30]
[426088834,1782141047000,-481.6069269,0.00027586,2]
[426088813,1782141047000,-1025.03,0.00027557,30]
[426088815,1782141047000,-1388.69,0.00027558,30]
[426088810,1782141047000,-14701.54489088,0.00027556,2]
[426088825,1782141047000,-372.27,0.00027575,2]
[426088823,1782141047000,-371.93,0.00027573,2]
[426088828,1782141047000,-785.0,0.00027586,2]
[426088830,1782141047000,-451.29655966,0.00027586,2]
[426088843,1782141047000,-239.06047859,0.00027586,2]
[426088832,1782141047000,-546.33168933,0.00027586,2]
[426088838,1782141047000,-452.11741345,0.00027586,2]
[426088845,1782141047000,-346.13643708,0.00027586,2]
[426088791,1782141047000,-500.0,0.000275,7]
[426088817,1782141047000,-1024.7,0.00027558,30]
[426088787,1782141047000,-501.0,0.00027423,9]
[426088731,1782141047000,-201.248029,0.00027397,2]
[426088780,1782141047000,-203.007912,0.000274,10]
[426088744,1782141047000,-1668.304004,0.00027397,2]
[426088742,1782141047000,-300.0,0.00027397,2]
[426088746,1782141047000,-1668.304004,0.00027397,2]
[426088732,1782141047000,-201.248029,0.00027397,2]
[426088739,1782141047000,-151.0,0.00027397,2]
[426088836,1782141047000,-292.4722585,0.00027586,2]
[426088738,1782141047000,-151.0,0.00027397,2]
[426088733,1782141047000,-201.248029,0.00027397,2]
[426088736,1782141047000,-201.248029,0.00027397,2]
[426088767,1782141047000,-156.29213893,0.00027397,2]
[426088762,1782141047000,-150.0,0.00027397,30]
[426088754,1782141047000,-14958.79,0.00027397,10]
[426088758,1782141047000,-10388.05,0.00027397,10]
[426088750,1782141047000,-17950.55,0.00027397,10]
[426088765,1782141047000,-150.0,0.00027397,2]
[426088748,1782141047000,-1668.304004,0.00027397,2]
[426088760,1782141047000,-1139.428651,0.00027397,2]
[426088752,1782141047000,-1668.304004,0.00027397,2]
[426088756,1782141047000,-12465.66,0.00027397,10]
[426088774,1782141047000,-969.24,0.000274,7]
[426088769,1782141047000,-312.58427785,0.00027397,2]
[426088771,1782141047000,-150.0,0.00027398,2]
[426088782,1782141047000,-2000.0,0.000274,2]
[426088784,1782141047000,-150.0,0.000274,7]
[426088776,1782141047000,-364.68,0.000274,7]
[426088778,1782141047000,-558.41,0.000274,7]
[426088840,1782141047000,-499.92173006,0.00027586,2]
[426088953,1782141047000,-274.11425643,0.00027668,2]
[426088851,1782141047000,-494.67219121,0.00027586,2]
[426088911,1782141047000,-512.74216904,0.00027667,2]
[426088913,1782141047000,-234.03408794,0.00027668,2]
[426088917,1782141047000,-170.28421828,0.00027668,2]
[426088926,1782141047000,-588.10557675,0.00027668,2]
[426088924,1782141047000,-229.43913755,0.00027668,2]
[426088920,1782141047000,-569.34877872,0.00027668,2]
[426088928,1782141047000,-532.52153234,0.00027668,2]
[426088935,1782141047000,-602.89581355,0.00027668,2]
[426088922,1782141047000,-165.39558021,0.00027668,2]
[426088939,1782141047000,-170.5130456,0.00027668,2]
[426088930,1782141047000,-234.31804654,0.00027668,2]
[426088937,1782141047000,-531.95457158,0.00027668,2]
[426088932,1782141047000,-546.28453689,0.00027668,2]
[426088941,1782141047000,-571.85753883,0.00027668,2]
[426088943,1782141047000,-494.05644286,0.00027668,2]
[426088949,1782141047000,-472.46829056,0.00027668,2]
[426088945,1782141047000,-161.15067988,0.00027668,2]
[426088951,1782141047000,-449.43943745,0.00027668,2]
[426088947,1782141047000,-203.00844963,0.00027668,2]
[426088959,1782141047000,-372.2084145,0.00027668,2]
[426088955,1782141047000,-201.10278948,0.00027668,2]
[426088963,1782141047000,-552.95079505,0.00027668,2]
[426088961,1782141047000,-475.37575953,0.00027668,2]
[426088965,1782141047000,-655.65251677,0.00027668,2]
[426088849,1782141047000,-474.37591394,0.00027586,2]
[426088909,1782141047000,-476.41692445,0.00027667,2]
[426088907,1782141047000,-372.27,0.00027662,2]
[426088957,1782141047000,-486.55794222,0.00027668,2]
[426088905,1782141047000,-371.93,0.0002766,2]
[426088903,1782141047000,-250.0,0.00027655,9]
[426088853,1782141047000,-164.150029,0.00027586,2]
[426088847,1782141047000,-309.4041896,0.00027586,2]
[426088857,1782141047000,-343.32851635,0.00027586,2]
[426088859,1782141047000,-391.36722361,0.00027586,2]
[426088861,1782141047000,-409.61401334,0.00027586,2]
[426088865,1782141047000,-474.0660855,0.00027586,2]
[426088867,1782141047000,-457.93694086,0.00027586,2]
[426088863,1782141047000,-459.87665222,0.00027586,2]
[426088869,1782141047000,-299.02349442,0.00027586,2]
[426088880,1782141047000,-372.27,0.00027604,7]
[426088875,1782141047000,-450.3093209,0.00027586,2]
[426088855,1782141047000,-212.84145914,0.00027586,2]
[426088883,1782141047000,-552.79404293,0.0002762,2]
[426088871,1782141047000,-584.9976941,0.00027586,2]
[426088899,1782141047000,-371.93,0.00027631,30]
[426088895,1782141047000,-468.87641678,0.0002762,2]
[426088888,1782141047000,-612.50274464,0.0002762,2]
[426088892,1782141047000,-446.98210209,0.0002762,2]
[426088897,1782141047000,-305.23292936,0.0002762,2]
[426088890,1782141047000,-222.6874624,0.0002762,2]
[426088873,1782141047000,-204.51063373,0.00027586,2]
[426088881,1782141047000,-240.3258027,0.0002762,2]
[426088877,1782141047000,-371.93,0.00027602,7]
[426088885,1782141047000,-482.7501994,0.0002762,2]
[426088901,1782141047000,-372.27,0.00027633,30]
[426089009,1782141048000,-371.93,0.00027778,7]
[426089015,1782141048000,-371.93,0.00027836,2]
[426089019,1782141048000,-1365.8,0.00027877,2]
[426089017,1782141048000,-371.93,0.00027866,7]
[426089012,1782141048000,-371.93,0.00027807,30]
[426089010,1782141048000,-372.27,0.00027779,7]
[426089018,1782141048000,-372.27,0.00027867,7]
[426089014,1782141048000,-180.56,0.00027808,2]
[426089013,1782141048000,-372.27,0.00027808,30]
[426089016,1782141048000,-372.27,0.00027837,2]
[426089025,1782141048000,-709.11,0.00027895,2]
[426089020,1782141048000,-1025.03,0.00027877,2]
[426089022,1782141048000,-1024.7,0.00027878,2]
[426089024,1782141048000,-783.3,0.0002788,2]
[426089027,1782141048000,-372.27,0.00027896,30]
[426089023,1782141048000,-815.98,0.00027879,2]
[426089026,1782141048000,-371.93,0.00027895,30]
[426089028,1782141048000,-969.24,0.000279,7]
[426089030,1782141048000,-573.98190904,0.00027918,2]
[426089011,1782141048000,-200.0,0.00027803,2]
[426089029,1782141048000,-364.68,0.000279,7]
[426089021,1782141048000,-1388.69,0.00027878,2]
[426088999,1782141048000,-815.98,0.00027719,7]
[426088987,1782141048000,-290.3986294,0.00027706,2]
[426088994,1782141048000,-1388.69,0.00027718,7]
[426089033,1782141048000,-372.27,0.00027925,2]
[426088967,1782141048000,-420.65992809,0.00027668,2]
[426088969,1782141048000,-400.36918089,0.00027668,2]
[426088977,1782141048000,-326.94484481,0.00027668,2]
[426088971,1782141048000,-453.34103782,0.00027668,2]
[426088979,1782141048000,-478.6431904,0.00027668,2]
[426088985,1782141048000,-372.27,0.00027691,7]
[426088981,1782141048000,-500.0,0.0002767,2]
[426088975,1782141048000,-498.60537648,0.00027668,2]
[426088983,1782141048000,-371.93,0.0002769,7]
[426088973,1782141048000,-526.67351473,0.00027668,2]
[426088989,1782141048000,-200.0,0.00027706,2]
[426088991,1782141048000,-1365.8,0.00027717,7]
[426089001,1782141048000,-371.93,0.00027719,30]
[426089004,1782141048000,-372.27,0.00027721,30]
[426089003,1782141048000,-783.3,0.0002772,7]
[426089007,1782141048000,-350.0,0.00027754,9]
[426089006,1782141048000,-372.27,0.0002775,2]
[426089005,1782141048000,-371.93,0.00027748,2]
[426089008,1782141048000,-14701.54489088,0.00027778,2]
[426088992,1782141048000,-1025.03,0.00027717,7]
[426088996,1782141048000,-1024.7,0.00027718,7]
[426089031,1782141048000,-785.0,0.00027918,2]
[426089038,1782141048000,-371.93,0.00027954,7]
[426089069,1782141048000,-1664.17,0.0002808,7]
[426089059,1782141048000,-1365.8,0.00028038,30]
[426089062,1782141048000,-815.98,0.00028039,30]
[426089065,1782141048000,-372.27,0.00028042,7]
[426089063,1782141048000,-783.3,0.0002804,30]
[426089067,1782141048000,-372.27,0.00028071,30]
[426089070,1782141048000,-372.27,0.000281,2]
[426089064,1782141048000,-501.0,0.00028041,9]
[426089068,1782141048000,-371.93,0.00028071,30]
[426089071,1782141048000,-371.93,0.000281,2]
[426089072,1782141048000,-372.36,0.0002813,7]
[426089074,1782141048000,-676.9448395,0.00028152,2]
[426089073,1782141048000,-372.0,0.0002813,7]
[426089075,1782141048000,-728.44225244,0.00028152,2]
[426089079,1782141048000,-678.17612018,0.00028152,2]
[426089077,1782141048000,-159.67444372,0.00028152,2]
[426089081,1782141048000,-666.56230675,0.00028152,2]
[426089078,1782141048000,-584.94451699,0.00028152,2]
[426089076,1782141048000,-642.1425692,0.00028152,2]
[426089080,1782141048000,-162.93427311,0.00028152,2]
[426089082,1782141048000,-478.12095717,0.00028152,2]
[426089034,1782141048000,-452.620133,0.00027937,2]
[426089056,1782141048000,-371.93,0.00028012,2]
[426089057,1782141048000,-372.27,0.00028013,2]
[426089066,1782141048000,-371.93,0.00028042,7]
[426089061,1782141048000,-1025.03,0.00028038,30]
[426089039,1782141048000,-176.16214999,0.00027958,2]
[426089032,1782141048000,-371.93,0.00027924,2]
[426089036,1782141048000,-3000.0,0.00027945,2]
[426089037,1782141048000,-372.27,0.00027954,7]
[426089040,1782141048000,-372.27,0.00027983,30]
[426089035,1782141048000,-397.86827212,0.00027939,2]
[426089041,1782141048000,-371.93,0.00027983,30]
[426089060,1782141048000,-1024.7,0.00028038,30]
[426089053,1782141048000,-14701.54489088,0.00028,2]
[426089044,1782141048000,-800.0,0.00028,2]
[426089048,1782141048000,-160.0,0.00028,30]
[426089050,1782141048000,-216.35787048,0.00028,30]
[426089043,1782141048000,-800.0,0.00028,2]
[426089051,1782141048000,-216.35787048,0.00028,10]
[426089042,1782141048000,-800.0,0.00028,2]
[426089049,1782141048000,-160.0,0.00028,10]
[426089046,1782141048000,-800.0,0.00028,2]
[426089045,1782141048000,-300.0,0.00028,2]
[426089052,1782141048000,-216.35787048,0.00028,7]
[426089047,1782141048000,-6412.0,0.00028,2]
[426089054,1782141048000,-113111.79803723,0.00028,2]
[426089055,1782141048000,-199429.26,0.00028,2]
[426089058,1782141048000,-1388.69,0.00028038,30]
[426089118,1782141049000,-267.17961695,0.00028234,2]
[426089120,1782141049000,-211.52135977,0.00028234,2]
[426089121,1782141049000,-212.41882599,0.00028234,2]
[426089115,1782141049000,-152.6191,0.00028219,2]
[426089117,1782141049000,-211.39000749,0.00028234,2]
[426089104,1782141049000,-445.37492481,0.00028186,2]
[426089110,1782141049000,-1365.8,0.00028198,7]
[426089107,1782141049000,-625.1685557,0.00028186,2]
[426089109,1782141049000,-1388.69,0.00028198,7]
[426089119,1782141049000,-211.33665678,0.00028234,2]
[426089116,1782141049000,-635.22256594,0.00028234,2]
[426089126,1782141049000,-410.65729424,0.00028236,2]
[426089131,1782141049000,-423.04271954,0.00028236,2]
[426089124,1782141049000,-340.56843656,0.00028236,2]
[426089122,1782141049000,-683.65622539,0.00028234,2]
[426089125,1782141049000,-759.13170496,0.00028236,2]
[426089127,1782141049000,-155.90730783,0.00028236,2]
[426089128,1782141049000,-163.71747587,0.00028236,2]
[426089129,1782141049000,-330.79116042,0.00028236,2]
[426089130,1782141049000,-448.54719082,0.00028236,2]
[426089137,1782141049000,-422.67331356,0.00028236,2]
[426089132,1782141049000,-385.95243938,0.00028236,2]
[426089138,1782141049000,-803.86108473,0.00028236,2]
[426089108,1782141049000,-457.84939404,0.00028186,2]
[426089123,1782141049000,-418.7907892,0.00028236,2]
[426089105,1782141049000,-670.47315313,0.00028186,2]
[426089092,1782141049000,-689.81497833,0.00028152,2]
[426089114,1782141049000,-783.3,0.000282,7]
[426089083,1782141049000,-173.06821854,0.00028152,2]
[426089084,1782141049000,-464.1062844,0.00028152,2]
[426089089,1782141049000,-514.99277453,0.00028152,2]
[426089088,1782141049000,-425.68291828,0.00028152,2]
[426089086,1782141049000,-659.56292161,0.00028152,2]
[426089091,1782141049000,-614.42102002,0.00028152,2]
[426089087,1782141049000,-328.30005801,0.00028152,2]